[Event "Titled Tuesday Blitz July 26 Early 2022"]
[White "Coto Mederos, Michel"]
[Black "Melikyan, Gnel"]
[WhiteFideId "3508528"]
[BlackFideId "54109990"]
[WhiteElo "2427"]
[BlackElo "1772"]
[Result "0-1"]
[Round "09"]
[TimeControl "180+1"]
[Date "2022.07.27"]
[WhiteClock "0:00:04"]
[BlackClock "0:00:13"]

1. d4 {[%clk 0:03:00]}  d5 {[%clk 0:02:58]} 2. Nf3 {[%clk 0:02:58]}  Nf6 {[%clk 0:02:58]} 3. Bg5 {[%clk 0:02:57]}  c6 {[%clk 0:02:55]} 4. Nbd2 {[%clk 0:02:52]}  Bf5 {[%clk 0:02:52]} 5. e3 {[%clk 0:02:49]}  Nbd7 {[%clk 0:02:50]} 6. Bd3 {[%clk 0:02:47]}  e6 {[%clk 0:02:48]} 7. O-O {[%clk 0:02:44]}  Be7 {[%clk 0:02:47]} 8. Bxf5 {[%clk 0:02:42]}  exf5 {[%clk 0:02:46]} 9. c4 {[%clk 0:02:42]}  dxc4 {[%clk 0:02:41]} 10. Nxc4 {[%clk 0:02:40]}  O-O {[%clk 0:02:41]} 11. Qb3 {[%clk 0:02:35]}  Nb6 {[%clk 0:02:35]} 12. Rfd1 {[%clk 0:02:07]}  Nxc4 {[%clk 0:02:17]} 13. Qxc4 {[%clk 0:02:06]}  Nd5 {[%clk 0:02:10]} 14. Bxe7 {[%clk 0:01:56]}  Qxe7 {[%clk 0:02:09]} 15. Rac1 {[%clk 0:01:56]}  f4 {[%clk 0:02:05]} 16. Re1 {[%clk 0:01:53]}  fxe3 {[%clk 0:02:03]} 17. fxe3 {[%clk 0:01:54]}  Rfe8 {[%clk 0:01:26]} 18. e4 {[%clk 0:01:40]}  Nf6 {[%clk 0:01:17]} 19. Re2 {[%clk 0:01:32]}  Qe6 {[%clk 0:00:54]} 20. Qxe6 {[%clk 0:01:13]}  Rxe6 {[%clk 0:00:51]} 21. e5 {[%clk 0:01:12]}  Nd5 {[%clk 0:00:49]} 22. Nd2 {[%clk 0:01:12]}  Rd8 {[%clk 0:00:47]} 23. Ne4 {[%clk 0:00:53]}  Nf4 {[%clk 0:00:26]} 24. Rd2 {[%clk 0:00:53]}  f6 {[%clk 0:00:19]} 25. g3 {[%clk 0:00:44]}  Rxd4 {[%clk 0:00:16]} 26. gxf4 {[%clk 0:00:15]}  Rxe4 {[%clk 0:00:16]} 27. Rd8+ {[%clk 0:00:14]}  Kf7 {[%clk 0:00:16]} 28. Rd7+ {[%clk 0:00:13]}  Re7 {[%clk 0:00:17]} 29. Rcd1 {[%clk 0:00:12]}  Rxf4 {[%clk 0:00:16]} 30. exf6 {[%clk 0:00:10]}  Rxf6 {[%clk 0:00:15]} 31. R1d2 {[%clk 0:00:08]}  Re6 {[%clk 0:00:13]} 32. Kf2 {[%clk 0:00:08]}  Rxd7 {[%clk 0:00:11]} 33. Rxd7+ {[%clk 0:00:09]}  Re7 {[%clk 0:00:12]} 34. Rd8 {[%clk 0:00:09]}  c5 {[%clk 0:00:11]} 35. Kf3 {[%clk 0:00:10]}  b6 {[%clk 0:00:12]} 36. Ra8 {[%clk 0:00:10]}  g6 {[%clk 0:00:12]} 37. Rd8 {[%clk 0:00:11]}  Kf6 {[%clk 0:00:12]} 38. h3 {[%clk 0:00:11]}  Kg5 {[%clk 0:00:13]} 39. Kf2 {[%clk 0:00:11]}  h5 {[%clk 0:00:13]} 40. Kg3 {[%clk 0:00:10]}  Re3+ {[%clk 0:00:13]} 41. Kf2 {[%clk 0:00:11]}  Re7 {[%clk 0:00:13]} 42. Rd6 {[%clk 0:00:11]}  Kh6 {[%clk 0:00:12]} 43. h4 {[%clk 0:00:11]}  Re4 {[%clk 0:00:12]} 44. Kg3 {[%clk 0:00:10]}  Rg4+ {[%clk 0:00:12]} 45. Kh3 {[%clk 0:00:11]}  Rb4 {[%clk 0:00:13]} 46. b3 {[%clk 0:00:11]}  a5 {[%clk 0:00:13]} 47. Rc6 {[%clk 0:00:09]}  a4 {[%clk 0:00:13]} 48. bxa4 {[%clk 0:00:10]}  Rxa4 {[%clk 0:00:14]} 49. Rxb6 {[%clk 0:00:10]}  Rxa2 {[%clk 0:00:15]} 50. Rc6 {[%clk 0:00:11]}  Rc2 {[%clk 0:00:15]} 51. Kg3 {[%clk 0:00:11]}  c4 {[%clk 0:00:15]} 52. Kf4 {[%clk 0:00:11]}  c3 {[%clk 0:00:15]} 53. Kg3 {[%clk 0:00:11]}  Rc1 {[%clk 0:00:15]} 54. Kg2 {[%clk 0:00:10]}  Kg7 {[%clk 0:00:15]} 55. Kh2 {[%clk 0:00:10]}  c2 {[%clk 0:00:15]} 56. Kg2 {[%clk 0:00:09]}  Kf7 {[%clk 0:00:15]} 57. Kh2 {[%clk 0:00:09]}  Ke7 {[%clk 0:00:11]} 58. Kg2 {[%clk 0:00:09]}  Kd7 {[%clk 0:00:12]} 59. Rc3 {[%clk 0:00:09]}  Ke6 {[%clk 0:00:12]} 60. Kh2 {[%clk 0:00:07]}  Kf5 {[%clk 0:00:12]} 61. Rc4 {[%clk 0:00:07]}  Ke5 {[%clk 0:00:12]} 62. Kg2 {[%clk 0:00:07]}  Kd5 {[%clk 0:00:12]} 63. Rc8 {[%clk 0:00:07]}  Ke4 {[%clk 0:00:12]} 64. Rc7 {[%clk 0:00:06]}  Ke3 {[%clk 0:00:12]} 65. Rc8 {[%clk 0:00:05]}  Re1 {[%clk 0:00:09]} 66. Rxc2 {[%clk 0:00:03]}  Re2+ {[%clk 0:00:09]} 67. Rxe2+ {[%clk 0:00:03]}  Kxe2 {[%clk 0:00:10]} 68. Kg3 {[%clk 0:00:02]}  Ke3 {[%clk 0:00:10]} 69. Kg2 {[%clk 0:00:02]}  Kf4 {[%clk 0:00:10]} 70. Kh3 {[%clk 0:00:02]}  Kf3 {[%clk 0:00:11]} 71. Kh2 {[%clk 0:00:03]}  Kg4 {[%clk 0:00:11]} 72. Kg2 {[%clk 0:00:03]}  Kxh4 {[%clk 0:00:12]} 73. Kh2 {[%clk 0:00:04]}  Kg4 {[%clk 0:00:13]} 0-1


[Site "https://www.chess.com"]

[Event "Titled Tuesday Blitz July 26 Early 2022"]
[White "Cruz Mendez, Jean Marco"]
[Black "Pranav, V"]
[WhiteFideId "3526402"]
[BlackFideId "25060783"]
[WhiteElo "2064"]
[BlackElo "2380"]
[Result "0-1"]
[Round "09"]
[TimeControl "180+1"]
[Date "2022.07.26"]
[WhiteClock "0:01:01"]
[BlackClock "0:02:10"]

1. e4 {[%clk 0:02:59]}  c5 {[%clk 0:02:58]} 2. Nf3 {[%clk 0:02:54]}  Nc6 {[%clk 0:02:58]} 3. Bb5 {[%clk 0:02:51]}  g6 {[%clk 0:02:58]} 4. Bxc6 {[%clk 0:02:51]}  dxc6 {[%clk 0:02:59]} 5. d3 {[%clk 0:02:51]}  Bg7 {[%clk 0:02:59]} 6. O-O {[%clk 0:02:51]}  e5 {[%clk 0:03:00]} 7. Nc3 {[%clk 0:02:50]}  Qe7 {[%clk 0:02:59]} 8. Be3 {[%clk 0:02:50]}  Nf6 {[%clk 0:02:59]} 9. h3 {[%clk 0:02:49]}  O-O {[%clk 0:02:58]} 10. Qd2 {[%clk 0:02:49]}  Nh5 {[%clk 0:02:56]} 11. a3 {[%clk 0:02:39]}  f5 {[%clk 0:02:55]} 12. b4 {[%clk 0:02:39]}  cxb4 {[%clk 0:02:50]} 13. axb4 {[%clk 0:02:40]}  Qxb4 {[%clk 0:02:51]} 14. Rfb1 {[%clk 0:02:38]}  Qe7 {[%clk 0:02:51]} 15. Bxa7 {[%clk 0:02:33]}  Be6 {[%clk 0:02:48]} 16. Bb6 {[%clk 0:02:22]}  Nf4 {[%clk 0:02:44]} 17. Rxa8 {[%clk 0:02:15]}  Rxa8 {[%clk 0:02:45]} 18. Be3 {[%clk 0:02:15]}  Nxh3+ {[%clk 0:02:32]} 19. gxh3 {[%clk 0:02:08]}  f4 {[%clk 0:02:33]} 20. Bxf4 {[%clk 0:01:40]}  exf4 {[%clk 0:02:30]} 21. Ne2 {[%clk 0:01:40]}  Bxh3 {[%clk 0:02:28]} 22. Qxf4 {[%clk 0:01:38]}  Rf8 {[%clk 0:02:26]} 23. Qg3 {[%clk 0:01:38]}  Bc8 {[%clk 0:02:25]} 24. Kg2 {[%clk 0:01:31]}  Qc5 {[%clk 0:02:20]} 25. c3 {[%clk 0:01:26]}  Qa3 {[%clk 0:02:19]} 26. Nfd4 {[%clk 0:01:22]}  Qa2 {[%clk 0:02:17]} 27. Rh1 {[%clk 0:01:18]}  c5 {[%clk 0:02:13]} 28. Qh4 {[%clk 0:01:01]}  h5 {[%clk 0:02:10]} 0-1


[Site "https://www.chess.com"]

[Event "Titled Tuesday Blitz July 26 Early 2022"]
[White "Fiol, Fabrice"]
[Black "Oye-Stromberg, Alexander"]
[WhiteFideId "611670"]
[BlackFideId "1525999"]
[WhiteElo "2370"]
[BlackElo "1958"]
[Result "1-0"]
[Round "09"]
[TimeControl "180+1"]
[Date "2022.07.27"]
[WhiteClock "0:00:08"]
[BlackClock "0:00:14"]

1. e4 {[%clk 0:02:55]}  c5 {[%clk 0:02:59]} 2. Nf3 {[%clk 0:02:52]}  Nc6 {[%clk 0:02:59]} 3. Bb5 {[%clk 0:02:47]}  g6 {[%clk 0:02:58]} 4. O-O {[%clk 0:02:46]}  Bg7 {[%clk 0:02:58]} 5. c3 {[%clk 0:02:47]}  Nf6 {[%clk 0:02:57]} 6. d4 {[%clk 0:02:47]}  cxd4 {[%clk 0:02:55]} 7. cxd4 {[%clk 0:02:47]}  Nxe4 {[%clk 0:02:56]} 8. d5 {[%clk 0:02:48]}  Nd6 {[%clk 0:02:51]} 9. Bd3 {[%clk 0:02:47]}  Nb8 {[%clk 0:02:47]} 10. Nc3 {[%clk 0:02:44]}  O-O {[%clk 0:02:47]} 11. Re1 {[%clk 0:02:43]}  a6 {[%clk 0:02:46]} 12. a4 {[%clk 0:02:35]}  e6 {[%clk 0:02:43]} 13. Bf4 {[%clk 0:02:32]}  Nf5 {[%clk 0:02:33]} 14. d6 {[%clk 0:02:27]}  Nc6 {[%clk 0:02:33]} 15. Bg5 {[%clk 0:02:02]}  Qa5 {[%clk 0:02:29]} 16. Ne4 {[%clk 0:01:57]}  Nfd4 {[%clk 0:02:22]} 17. Nf6+ {[%clk 0:01:51]}  Kh8 {[%clk 0:02:21]} 18. Bd2 {[%clk 0:01:32]}  Qd8 {[%clk 0:02:08]} 19. Ne4 {[%clk 0:01:22]}  b6 {[%clk 0:01:59]} 20. Bc3 {[%clk 0:01:21]}  Nxf3+ {[%clk 0:01:55]} 21. Qxf3 {[%clk 0:01:22]}  Bb7 {[%clk 0:01:49]} 22. Bxg7+ {[%clk 0:01:19]}  Kxg7 {[%clk 0:01:48]} 23. Qe3 {[%clk 0:01:14]}  f5 {[%clk 0:01:47]} 24. Nc3 {[%clk 0:01:08]}  e5 {[%clk 0:01:36]} 25. f4 {[%clk 0:00:59]}  e4 {[%clk 0:01:35]} 26. Bf1 {[%clk 0:00:55]}  Rf6 {[%clk 0:01:35]} 27. Rad1 {[%clk 0:00:54]}  Na5 {[%clk 0:01:31]} 28. b4 {[%clk 0:00:28]}  Nc6 {[%clk 0:01:27]} 29. Nd5 {[%clk 0:00:25]}  Rxd6 {[%clk 0:01:24]} 30. Nxb6 {[%clk 0:00:25]}  Rxd1 {[%clk 0:01:11]} 31. Rxd1 {[%clk 0:00:26]}  d5 {[%clk 0:00:44]} 32. Rxd5 {[%clk 0:00:21]}  Qh4 {[%clk 0:00:39]} 33. Rd7+ {[%clk 0:00:20]}  Kh6 {[%clk 0:00:38]} 34. Rxb7 {[%clk 0:00:19]}  Rd8 {[%clk 0:00:37]} 35. Rd7 {[%clk 0:00:19]}  Rxd7 {[%clk 0:00:36]} 36. Nxd7 {[%clk 0:00:19]}  Qe7 {[%clk 0:00:36]} 37. Ne5 {[%clk 0:00:17]}  Nxb4 {[%clk 0:00:33]} 38. Qh3+ {[%clk 0:00:16]}  Kg7 {[%clk 0:00:33]} 39. Qc3 {[%clk 0:00:16]}  Nd5 {[%clk 0:00:32]} 40. Qd4 {[%clk 0:00:16]}  Nf6 {[%clk 0:00:31]} 41. Bc4 {[%clk 0:00:13]}  Kh6 {[%clk 0:00:29]} 42. h4 {[%clk 0:00:13]}  a5 {[%clk 0:00:19]} 43. Nf7+ {[%clk 0:00:12]}  Kg7 {[%clk 0:00:19]} 44. Ng5 {[%clk 0:00:11]}  Kh6 {[%clk 0:00:18]} 45. Qe5 {[%clk 0:00:10]}  Qxe5 {[%clk 0:00:17]} 46. fxe5 {[%clk 0:00:11]}  Ng4 {[%clk 0:00:17]} 47. e6 {[%clk 0:00:11]}  Kg7 {[%clk 0:00:16]} 48. e7 {[%clk 0:00:11]}  Nf6 {[%clk 0:00:17]} 49. Bb5 {[%clk 0:00:08]}  h6 {[%clk 0:00:17]} 50. e8=Q {[%clk 0:00:08]}  Nxe8 {[%clk 0:00:17]} 51. Bxe8 {[%clk 0:00:09]}  hxg5 {[%clk 0:00:17]} 52. hxg5 {[%clk 0:00:10]}  f4 {[%clk 0:00:17]} 53. Bc6 {[%clk 0:00:10]}  e3 {[%clk 0:00:17]} 54. Kf1 {[%clk 0:00:10]}  Kf7 {[%clk 0:00:18]} 55. Ke2 {[%clk 0:00:10]}  Ke6 {[%clk 0:00:18]} 56. Be4 {[%clk 0:00:09]}  Kf7 {[%clk 0:00:14]} 57. Kf3 {[%clk 0:00:08]}  Kg7 {[%clk 0:00:13]} 58. Bd3 {[%clk 0:00:08]}  Kf7 {[%clk 0:00:14]} 59. Kxf4 {[%clk 0:00:08]} 1-0


[Site "https://www.chess.com"]

[Event "Titled Tuesday Blitz July 26 Early 2022"]
[White "Hafiz, Arif Abdul"]
[Black "Vachylia, Andrii"]
[WhiteFideId "7104227"]
[BlackFideId "14137224"]
[WhiteElo "2198"]
[BlackElo "2318"]
[Result "1-0"]
[Round "09"]
[TimeControl "180+1"]
[Date "2022.07.26"]
[WhiteClock "0:02:16"]
[BlackClock "0:01:45"]

1. e4 {[%clk 0:03:00]}  c5 {[%clk 0:02:57]} 2. Nc3 {[%clk 0:03:00]}  d6 {[%clk 0:02:56]} 3. f4 {[%clk 0:03:01]}  Nc6 {[%clk 0:02:56]} 4. Nf3 {[%clk 0:03:02]}  g6 {[%clk 0:02:56]} 5. Bb5 {[%clk 0:03:02]}  Bg7 {[%clk 0:02:56]} 6. O-O {[%clk 0:03:03]}  e6 {[%clk 0:02:56]} 7. Bxc6+ {[%clk 0:03:03]}  bxc6 {[%clk 0:02:56]} 8. d3 {[%clk 0:03:03]}  Ne7 {[%clk 0:02:56]} 9. Qe1 {[%clk 0:03:04]}  O-O {[%clk 0:02:53]} 10. Na4 {[%clk 0:02:58]}  Ba6 {[%clk 0:02:48]} 11. c4 {[%clk 0:02:58]}  Rb8 {[%clk 0:02:36]} 12. Rb1 {[%clk 0:02:54]}  Bd4+ {[%clk 0:02:30]} 13. Kh1 {[%clk 0:02:50]}  Qd7 {[%clk 0:02:26]} 14. b3 {[%clk 0:02:48]}  f6 {[%clk 0:02:19]} 15. Bd2 {[%clk 0:02:40]}  e5 {[%clk 0:02:17]} 16. fxe5 {[%clk 0:02:40]}  fxe5 {[%clk 0:02:16]} 17. Bh6 {[%clk 0:02:37]}  Rfe8 {[%clk 0:02:02]} 18. Nxd4 {[%clk 0:02:18]}  cxd4 {[%clk 0:02:03]} 19. Rf6 {[%clk 0:02:18]}  Kh8 {[%clk 0:01:56]} 20. Qf2 {[%clk 0:02:16]}  Ng8 {[%clk 0:01:55]} 21. Rf7 {[%clk 0:02:16]}  Qxf7 {[%clk 0:01:44]} 22. Qxf7 {[%clk 0:02:17]}  Nxh6 {[%clk 0:01:45]} 23. Qf6+ {[%clk 0:02:15]}  Kg8 {[%clk 0:01:45]} 24. Qxd6 {[%clk 0:02:16]} 1-0


[Site "https://www.chess.com"]

[Event "Titled Tuesday Blitz July 26 Early 2022"]
[White "Howell, David W L"]
[Black "Wagner, Dennis"]
[WhiteFideId "410608"]
[BlackFideId "24650684"]
[WhiteElo "2559"]
[BlackElo "2355"]
[Result "1-0"]
[Round "09"]
[TimeControl "180+1"]
[Date "2022.07.26"]
[WhiteClock "0:00:10"]
[BlackClock "0:00:10"]

1. e4 {[%clk 0:03:00]}  e5 {[%clk 0:03:00]} 2. Nf3 {[%clk 0:02:59]}  Nc6 {[%clk 0:03:00]} 3. Bc4 {[%clk 0:02:57]}  Nf6 {[%clk 0:03:01]} 4. d3 {[%clk 0:02:57]}  Bc5 {[%clk 0:03:01]} 5. c3 {[%clk 0:02:56]}  d6 {[%clk 0:03:01]} 6. Bb3 {[%clk 0:02:55]}  a5 {[%clk 0:02:59]} 7. h3 {[%clk 0:02:54]}  O-O {[%clk 0:02:59]} 8. Nbd2 {[%clk 0:02:51]}  Be6 {[%clk 0:02:59]} 9. Bc2 {[%clk 0:02:48]}  b5 {[%clk 0:02:48]} 10. Ng5 {[%clk 0:02:43]}  a4 {[%clk 0:02:44]} 11. Nxe6 {[%clk 0:02:41]}  fxe6 {[%clk 0:02:45]} 12. O-O {[%clk 0:02:42]}  Qe8 {[%clk 0:02:42]} 13. a3 {[%clk 0:01:56]}  Nh5 {[%clk 0:02:41]} 14. Nf3 {[%clk 0:01:52]}  Bb6 {[%clk 0:02:18]} 15. Kh2 {[%clk 0:01:48]}  Nf4 {[%clk 0:02:03]} 16. g3 {[%clk 0:01:41]}  Ng6 {[%clk 0:01:49]} 17. Kg2 {[%clk 0:01:39]}  h6 {[%clk 0:01:47]} 18. Qe2 {[%clk 0:01:35]}  Rf6 {[%clk 0:01:48]} 19. Nh2 {[%clk 0:01:24]}  Qd7 {[%clk 0:01:34]} 20. Ng4 {[%clk 0:01:17]}  Rf7 {[%clk 0:01:34]} 21. h4 {[%clk 0:01:14]}  Raf8 {[%clk 0:01:33]} 22. h5 {[%clk 0:01:14]}  Nge7 {[%clk 0:01:31]} 23. Bd2 {[%clk 0:01:02]}  d5 {[%clk 0:01:24]} 24. Rad1 {[%clk 0:00:53]}  Nc8 {[%clk 0:01:21]} 25. Bb1 {[%clk 0:00:51]}  Nd6 {[%clk 0:01:21]} 26. Ba2 {[%clk 0:00:51]}  Nc8 {[%clk 0:00:47]} 27. Be3 {[%clk 0:00:33]}  Kh8 {[%clk 0:00:33]} 28. exd5 {[%clk 0:00:17]}  exd5 {[%clk 0:00:32]} 29. Bxb6 {[%clk 0:00:18]}  Nxb6 {[%clk 0:00:32]} 30. Nxe5 {[%clk 0:00:19]}  Nxe5 {[%clk 0:00:29]} 31. Qxe5 {[%clk 0:00:19]}  Re7 {[%clk 0:00:18]} 32. Qd4 {[%clk 0:00:19]}  Re2 {[%clk 0:00:19]} 33. Qb4 {[%clk 0:00:14]}  Qf5 {[%clk 0:00:18]} 34. Qc5 {[%clk 0:00:11]}  Rxb2 {[%clk 0:00:16]} 35. Bb1 {[%clk 0:00:10]}  Qf3+ {[%clk 0:00:16]} 36. Kg1 {[%clk 0:00:10]}  Qxh5 {[%clk 0:00:13]} 37. Qxf8+ {[%clk 0:00:10]}  Kh7 {[%clk 0:00:14]} 38. d4+ {[%clk 0:00:10]}  Rxb1 {[%clk 0:00:12]} 39. Rxb1 {[%clk 0:00:11]}  Nc4 {[%clk 0:00:12]} 40. Qf4 {[%clk 0:00:10]}  Nxa3 {[%clk 0:00:10]} 41. Rb2 {[%clk 0:00:10]}  c6 {[%clk 0:00:10]} 42. Re1 {[%clk 0:00:10]}  Nc4 {[%clk 0:00:11]} 43. Rbe2 {[%clk 0:00:10]}  a3 {[%clk 0:00:10]} 44. Re7 {[%clk 0:00:10]}  a2 {[%clk 0:00:10]} 45. Rxg7+ {[%clk 0:00:09]}  Kxg7 {[%clk 0:00:10]} 46. Re7+ {[%clk 0:00:10]}  Kg8 {[%clk 0:00:10]} 47. Qb8+ {[%clk 0:00:10]} 1-0


[Site "https://www.chess.com"]

[Event "Titled Tuesday Blitz July 26 Early 2022"]
[White "Ismayil, Malak"]
[Black "McConnell, Griffin"]
[WhiteFideId "13412604"]
[BlackFideId "30942551"]
[WhiteElo "1879"]
[BlackElo "2293"]
[Result "1-0"]
[Round "09"]
[TimeControl "180+1"]
[Date "2022.07.27"]
[WhiteClock "0:00:02"]
[BlackClock "0:00:02"]

1. e4 {[%clk 0:03:00]}  c6 {[%clk 0:02:59]} 2. d4 {[%clk 0:02:59]}  d5 {[%clk 0:03:00]} 3. Nc3 {[%clk 0:02:59]}  dxe4 {[%clk 0:03:00]} 4. Nxe4 {[%clk 0:03:00]}  Bf5 {[%clk 0:03:00]} 5. Ng3 {[%clk 0:02:55]}  Bg6 {[%clk 0:03:00]} 6. Nf3 {[%clk 0:02:53]}  Nd7 {[%clk 0:02:59]} 7. h4 {[%clk 0:02:53]}  h6 {[%clk 0:02:59]} 8. h5 {[%clk 0:02:53]}  Bh7 {[%clk 0:02:59]} 9. Bd3 {[%clk 0:02:53]}  Bxd3 {[%clk 0:02:59]} 10. Qxd3 {[%clk 0:02:54]}  e6 {[%clk 0:03:00]} 11. Bd2 {[%clk 0:02:55]}  Ngf6 {[%clk 0:02:59]} 12. O-O-O {[%clk 0:02:55]}  Qc7 {[%clk 0:02:59]} 13. c4 {[%clk 0:02:53]}  O-O-O {[%clk 0:02:57]} 14. Ne4 {[%clk 0:02:49]}  Nxe4 {[%clk 0:02:53]} 15. Qxe4 {[%clk 0:02:50]}  Nf6 {[%clk 0:02:52]} 16. Qe2 {[%clk 0:02:45]}  c5 {[%clk 0:02:45]} 17. Be3 {[%clk 0:02:41]}  Bd6 {[%clk 0:02:37]} 18. Kb1 {[%clk 0:02:39]}  Qc6 {[%clk 0:02:11]} 19. Qc2 {[%clk 0:02:32]}  b6 {[%clk 0:01:35]} 20. d5 {[%clk 0:02:17]}  exd5 {[%clk 0:01:27]} 21. cxd5 {[%clk 0:02:18]}  Qd7 {[%clk 0:01:24]} 22. Qc4 {[%clk 0:02:10]}  Qg4 {[%clk 0:01:16]} 23. Qa6+ {[%clk 0:02:04]}  Kb8 {[%clk 0:01:14]} 24. Rh4 {[%clk 0:01:49]}  Qf5+ {[%clk 0:01:08]} 25. Ka1 {[%clk 0:01:23]}  Nxd5 {[%clk 0:01:05]} 26. Ra4 {[%clk 0:01:22]}  Rd7 {[%clk 0:00:57]} 27. Qb5 {[%clk 0:01:20]}  Rhd8 {[%clk 0:00:44]} 28. Bc1 {[%clk 0:01:12]}  Nb4 {[%clk 0:00:31]} 29. Ne1 {[%clk 0:01:02]}  Qxf2 {[%clk 0:00:20]} 30. a3 {[%clk 0:00:58]}  Nc2+ {[%clk 0:00:18]} 31. Nxc2 {[%clk 0:00:57]}  Qxc2 {[%clk 0:00:19]} 32. Rf1 {[%clk 0:00:50]}  Qxg2 {[%clk 0:00:18]} 33. Be3 {[%clk 0:00:34]}  Qb7 {[%clk 0:00:18]} 34. Rg1 {[%clk 0:00:26]}  f6 {[%clk 0:00:18]} 35. Rc4 {[%clk 0:00:21]}  Be5 {[%clk 0:00:18]} 36. Qb3 {[%clk 0:00:20]}  Qd5 {[%clk 0:00:16]} 37. Bxc5 {[%clk 0:00:17]}  Ka8 {[%clk 0:00:10]} 38. Be3 {[%clk 0:00:16]}  b5 {[%clk 0:00:10]} 39. Rb4 {[%clk 0:00:13]}  Qxb3 {[%clk 0:00:10]} 40. Rxb3 {[%clk 0:00:14]}  a6 {[%clk 0:00:10]} 41. Ka2 {[%clk 0:00:14]}  Kb7 {[%clk 0:00:09]} 42. Bc5 {[%clk 0:00:12]}  Rc7 {[%clk 0:00:08]} 43. Bb4 {[%clk 0:00:12]}  Bd6 {[%clk 0:00:08]} 44. Rd3 {[%clk 0:00:11]}  Rcd7 {[%clk 0:00:09]} 45. Rgd1 {[%clk 0:00:11]}  Kc7 {[%clk 0:00:09]} 46. Ba5+ {[%clk 0:00:11]}  Kc6 {[%clk 0:00:10]} 47. Bxd8 {[%clk 0:00:11]}  Rxd8 {[%clk 0:00:11]} 48. Kb3 {[%clk 0:00:12]}  Rd7 {[%clk 0:00:10]} 49. Rc3+ {[%clk 0:00:12]}  Kb7 {[%clk 0:00:10]} 50. Rcd3 {[%clk 0:00:12]}  Kc7 {[%clk 0:00:11]} 51. Rd5 {[%clk 0:00:13]}  Rd8 {[%clk 0:00:11]} 52. Kc2 {[%clk 0:00:13]}  Be7 {[%clk 0:00:09]} 53. Rxd8 {[%clk 0:00:12]}  Bxd8 {[%clk 0:00:10]} 54. Rg1 {[%clk 0:00:12]}  f5 {[%clk 0:00:08]} 55. Rxg7+ {[%clk 0:00:12]}  Kc8 {[%clk 0:00:07]} 56. Rf7 {[%clk 0:00:12]}  Bg5 {[%clk 0:00:07]} 57. Rxf5 {[%clk 0:00:13]}  Kb7 {[%clk 0:00:08]} 58. Kd3 {[%clk 0:00:12]}  Kb6 {[%clk 0:00:08]} 59. b4 {[%clk 0:00:12]}  Bc1 {[%clk 0:00:07]} 60. Kc2 {[%clk 0:00:11]}  Be3 {[%clk 0:00:06]} 61. Rf6+ {[%clk 0:00:11]}  Kb7 {[%clk 0:00:06]} 62. Kd3 {[%clk 0:00:11]}  Bc1 {[%clk 0:00:06]} 63. Ke4 {[%clk 0:00:11]}  Bxa3 {[%clk 0:00:05]} 64. Rxh6 {[%clk 0:00:11]}  Bxb4 {[%clk 0:00:05]} 65. Kd5 {[%clk 0:00:11]}  Bc3 {[%clk 0:00:05]} 66. Rh7+ {[%clk 0:00:10]}  Kb6 {[%clk 0:00:05]} 67. h6 {[%clk 0:00:09]}  a5 {[%clk 0:00:05]} 68. Rd7 {[%clk 0:00:09]}  a4 {[%clk 0:00:06]} 69. Ke4 {[%clk 0:00:06]}  a3 {[%clk 0:00:06]} 70. Rd6+ {[%clk 0:00:03]}  Kc5 {[%clk 0:00:04]} 71. Ra6 {[%clk 0:00:04]}  Kb4 {[%clk 0:00:03]} 72. Kd3 {[%clk 0:00:04]}  Be5 {[%clk 0:00:03]} 73. h7 {[%clk 0:00:04]}  Bb2 {[%clk 0:00:03]} 74. Kc2 {[%clk 0:00:04]}  Be5 {[%clk 0:00:02]} 75. Ra8 {[%clk 0:00:02]} 1-0


[Site "https://www.chess.com"]

[Event "Titled Tuesday Blitz July 26 Early 2022"]
[White "Janaszak, Dawid"]
[Black "Rohith Krishna S"]
[WhiteFideId "1119206"]
[BlackFideId "46617051"]
[WhiteElo "2199"]
[BlackElo "2117"]
[Result "0-1"]
[Round "09"]
[TimeControl "180+1"]
[Date "2022.07.26"]
[WhiteClock "0:00:19"]
[BlackClock "0:01:13"]

1. d4 {[%clk 0:03:00]}  c5 {[%clk 0:03:00]} 2. dxc5 {[%clk 0:03:00]}  e6 {[%clk 0:03:00]} 3. Nc3 {[%clk 0:02:58]}  Bxc5 {[%clk 0:02:57]} 4. Ne4 {[%clk 0:02:58]}  d5 {[%clk 0:02:53]} 5. Nxc5 {[%clk 0:02:58]}  Qa5+ {[%clk 0:02:53]} 6. c3 {[%clk 0:02:59]}  Qxc5 {[%clk 0:02:54]} 7. e4 {[%clk 0:02:59]}  dxe4 {[%clk 0:02:53]} 8. Qg4 {[%clk 0:02:54]}  Qe5 {[%clk 0:02:49]} 9. Bf4 {[%clk 0:02:53]}  Qf6 {[%clk 0:02:44]} 10. Bxb8 {[%clk 0:02:46]}  Rxb8 {[%clk 0:02:43]} 11. Bb5+ {[%clk 0:02:45]}  Bd7 {[%clk 0:02:28]} 12. Bxd7+ {[%clk 0:02:43]}  Kxd7 {[%clk 0:02:28]} 13. O-O-O+ {[%clk 0:02:43]}  Kc7 {[%clk 0:02:28]} 14. Qxe4 {[%clk 0:02:36]}  Ne7 {[%clk 0:02:27]} 15. Nf3 {[%clk 0:02:28]}  Nc6 {[%clk 0:02:22]} 16. Nd4 {[%clk 0:02:06]}  Nxd4 {[%clk 0:02:21]} 17. Rxd4 {[%clk 0:02:06]}  Rbd8 {[%clk 0:02:21]} 18. Rhd1 {[%clk 0:01:57]}  Rxd4 {[%clk 0:02:21]} 19. Qxd4 {[%clk 0:01:55]}  Qxd4 {[%clk 0:02:20]} 20. Rxd4 {[%clk 0:01:54]}  e5 {[%clk 0:02:20]} 21. Rd5 {[%clk 0:01:52]}  f6 {[%clk 0:02:20]} 22. Kc2 {[%clk 0:01:52]}  h5 {[%clk 0:02:20]} 23. h4 {[%clk 0:01:50]}  Rh6 {[%clk 0:02:20]} 24. g3 {[%clk 0:01:46]}  Rg6 {[%clk 0:02:20]} 25. Rc5+ {[%clk 0:01:41]}  Kd7 {[%clk 0:02:19]} 26. Kd3 {[%clk 0:01:40]}  a6 {[%clk 0:02:17]} 27. a4 {[%clk 0:01:38]}  Rg4 {[%clk 0:02:17]} 28. Rc4 {[%clk 0:01:32]}  Rg6 {[%clk 0:02:15]} 29. a5 {[%clk 0:01:30]}  f5 {[%clk 0:02:10]} 30. b4 {[%clk 0:01:25]}  Rd6+ {[%clk 0:02:09]} 31. Ke3 {[%clk 0:01:26]}  g6 {[%clk 0:02:09]} 32. Rc5 {[%clk 0:01:23]}  e4 {[%clk 0:02:09]} 33. c4 {[%clk 0:00:49]}  Rd3+ {[%clk 0:01:40]} 34. Ke2 {[%clk 0:00:49]}  Rf3 {[%clk 0:01:41]} 35. Rd5+ {[%clk 0:00:37]}  Kc7 {[%clk 0:01:38]} 36. Re5 {[%clk 0:00:37]}  Rb3 {[%clk 0:01:33]} 37. b5 {[%clk 0:00:24]}  axb5 {[%clk 0:01:27]} 38. c5 {[%clk 0:00:20]}  Ra3 {[%clk 0:01:21]} 39. Re6 {[%clk 0:00:18]}  b4 {[%clk 0:01:20]} 40. Kd2 {[%clk 0:00:18]}  Rxa5 {[%clk 0:01:17]} 41. Rxg6 {[%clk 0:00:18]}  Rxc5 {[%clk 0:01:13]} 42. Rg7+ {[%clk 0:00:18]}  Kb6 {[%clk 0:01:12]} 43. Rg6+ {[%clk 0:00:18]}  Kb5 {[%clk 0:01:13]} 44. Rg7 {[%clk 0:00:19]}  b6 {[%clk 0:01:13]} 0-1


[Site "https://www.chess.com"]